bitfinex/quotes_SOLUSD_20250607
["timestamp","ask_amount","ask_price","bid_price","bid_amount"]
[1749336304206,3.75839931,151.37,151.35,11.94]
[1749336304507,3.75839931,151.36,151.35,11.94]
[1749336305712,3.75839931,151.37,151.35,18.54718421]
[1749336307235,3.75839931,151.37,151.35,11.94]
[1749336308799,3.75839931,151.37,151.35,18.54717658]
[1749336310906,3.75839931,151.37,151.35,11.94]
[1749336316919,3.75839931,151.37,151.35,18.5471858]
[1749336322108,3.75839931,151.38,151.35,18.5471858]
[1749336322315,18.64964886,151.4,151.36,0.351473]
[1749336322514,3.75839931,151.38,151.36,0.351473]
[1749336323529,3.75839931,151.37,151.36,0.351473]
[1749336326228,25.25469573,151.4,151.36,0.351473]
[1749336326416,3.75839931,151.37,151.36,6.95822624]
[1749336326617,3.75839931,151.37,151.36,0.351473]
[1749336328429,25.25471226,151.4,151.36,0.351473]
[1749336328624,3.75839931,151.37,151.36,0.351473]
[1749336329207,3.75839931,151.38,151.36,0.351473]
[1749336329408,3.75839931,151.38,151.36,6.95819742]
[1749336330224,18.64964886,151.4,151.36,6.95819742]
[1749336330533,3.75839931,151.38,151.36,6.95819742]
[1749336333735,18.64964886,151.4,151.36,6.95819742]
[1749336333934,3.75839931,151.38,151.36,6.95819742]
[1749336337841,32.60425892,151.42,151.36,6.95819742]
[1749336338018,3.75839931,151.4,151.36,10.71659673]
[1749336339029,3.75839931,151.41,151.36,27.23351004]
[1749336339229,3.75839931,151.41,151.37,3.75839931]
[1749336339552,3.75839931,151.42,151.37,3.75839931]
[1749336340146,3.75839931,151.42,151.38,6.60589245]
[1749336340646,18.64964886,151.43,151.38,6.60589245]
[1749336340843,3.75839931,151.41,151.38,6.60589245]
[1749336341636,3.75839931,151.4,151.38,6.60589245]
[1749336341837,3.75839931,151.4,151.37,6.60632886]
[1749336342944,3.75839931,151.41,151.37,6.60632886]
[1749336346661,18.64964886,151.43,151.37,6.60632886]
[1749336346836,3.75839931,151.41,151.37,6.60632886]
[1749336347235,1.5624,151.45,151.37,26.88055032]
[1749336347440,18.64964886,151.47,151.4,3.75839931]
[1749336347638,3.75839931,151.44,151.4,3.75839931]
[1749336347861,44.64964886,151.47,151.4,3.75839931]
[1749336348460,3.75839931,151.45,151.42,6.6041474]
[1749336348639,3.75839931,151.45,151.43,11.78]
[1749336348846,3.75839931,151.46,151.43,11.78]
[1749336349632,3.75839931,151.46,151.43,18.38329859]
[1749336350461,29.75839931,151.47,151.43,18.38329859]
[1749336350663,3.75839931,151.47,151.43,18.38329859]
[1749336350865,3.86183411,151.48,151.43,22.1416979]
[1749336351232,3.75839931,151.47,151.43,18.38329859]
[1749336351460,3.75839931,151.47,151.43,22.1416979]
[1749336352835,0.1034348,151.48,151.43,22.1416979]
[1749336353338,0.1034348,151.48,151.44,3.75839931]
[1749336353539,3.86183411,151.48,151.44,3.75839931]
[1749336353754,3.86183411,151.48,151.45,6.60283922]
[1749336354272,0.1034348,151.48,151.45,6.60283922]
[1749336354562,3.86183411,151.48,151.45,6.60283922]
[1749336356048,3.75839931,151.47,151.44,6.6032589]
[1749336356448,0.1034348,151.48,151.44,6.6032589]
[1749336356673,3.86183411,151.48,151.44,6.6032589]
[1749336358454,3.86183411,151.48,151.44,10.36165821]
[1749336359380,3.86183411,151.48,151.44,6.6032589]
[1749336360794,3.75839931,151.47,151.44,6.6032589]
[1749336361078,3.75839931,151.46,151.43,18.38354019]
[1749336361280,3.75839931,151.47,151.43,18.38354019]
[1749336361478,0.1034348,151.48,151.44,3.75839931]
[1749336361668,3.86183411,151.48,151.44,3.75839931]
[1749336362660,3.86183411,151.48,151.45,6.60283922]
[1749336362867,0.1034348,151.48,151.45,6.60283922]
[1749336364793,3.86183411,151.48,151.44,6.60312937]
[1749336367271,3.75839931,151.47,151.44,6.60312937]
[1749336369485,3.86183411,151.48,151.44,6.60312937]
[1749336372171,0.1034348,151.48,151.44,6.60312937]
[1749336372505,3.86183411,151.48,151.44,6.60312937]
[1749336374899,0.1034348,151.48,151.44,6.60312937]
[1749336375087,3.86183411,151.48,151.44,6.60312937]
[1749336378300,3.86183411,151.48,151.45,18.30270461]
[1749336383006,0.1034348,151.48,151.45,18.30270461]
[1749336383304,3.86183411,151.48,151.46,11.7]
[1749336385206,0.1034348,151.48,151.46,22.06072527]
[1749336387084,0.1034348,151.48,151.46,18.30232596]
[1749336389836,0.1034348,151.48,151.46,22.06072527]
[1749336394800,0.1034348,151.48,151.46,18.30232596]
[1749336396231,0.1034348,151.48,151.47,4.04272245]
[1749336396897,0.1034348,151.48,151.47,10.64468983]
[1749336397096,0.1034348,151.48,151.47,13.11554605]
[1749336398291,0.1034348,151.48,151.47,10.64468983]
[1749336398495,0.1034348,151.48,151.47,6.60196738]
[1749336398714,0.1034348,151.48,151.47,9.07326277]
[1749336399696,0.1034348,151.48,151.47,9.07230693]
[1749336400223,0.1034348,151.48,151.47,9.07236233]
[1749336400826,0.1034348,151.48,151.47,9.07223755]
[1749336401121,0.1034348,151.48,151.47,9.07221337]
[1749336401815,0.1034348,151.48,151.47,13.11490459]
[1749336402126,0.1034348,151.48,151.47,13.1147384]
[1749336402298,0.1034348,151.48,151.47,13.114683]
[1749336403612,0.1034348,151.48,151.47,13.11351792]
[1749336403821,0.1034348,151.48,151.47,10.64468983]
[1749336404122,0.1034348,151.48,151.47,13.1135456]
[1749336404320,0.1034348,151.48,151.47,10.64468983]
[1749336404524,0.1034348,151.48,151.47,13.1135456]
[1749336405209,0.1034348,151.48,151.47,13.11353182]
[1749336405408,0.1034348,151.48,151.47,10.64468983]
[1749336405630,0.1034348,151.48,151.47,13.11353182]
[1749336406220,0.1034348,151.48,151.47,10.64468983]
[1749336406405,0.1034348,151.48,151.47,13.11252823]
[1749336406605,0.1034348,151.48,151.47,100.91252823]
[1749336406815,0.1034348,151.48,151.47,100.91267973]
[1749336407231,0.1034348,151.48,151.47,98.44468983]
[1749336407416,0.1034348,151.48,151.47,100.91269357]
[1749336407720,0.1034348,151.48,151.47,98.44468983]
[1749336407926,0.1034348,151.48,151.47,100.91238345]
[1749336408604,0.1034348,151.48,151.47,100.91233833]
[1749336409329,0.1034348,151.48,151.47,98.44468983]
[1749336409514,0.1034348,151.48,151.47,97.15396273]
[1749336409825,0.1034348,151.48,151.47,100.91236204]
[1749336410031,0.1034348,151.48,151.47,100.91237963]
[1749336410226,0.1034348,151.48,151.47,100.91224297]
[1749336410525,0.1034348,151.48,151.47,100.91219059]
[1749336410834,0.1034348,151.48,151.47,100.91219058]
[1749336411025,0.1034348,151.48,151.47,100.91226392]
[1749336412026,0.1034348,151.48,151.47,100.91229159]
[1749336412518,0.1034348,151.48,151.47,6.88629052]
[1749336413110,0.1034348,151.48,151.47,9.35457272]
[1749336414029,0.1034348,151.48,151.47,13.11294435]
[1749336414349,0.1034348,151.48,151.47,13.11290283]
[1749336414509,0.1034348,151.48,151.47,10.64468983]
[1749336414834,0.1034348,151.48,151.47,13.11290283]
[1749336415629,0.1034348,151.48,151.47,13.1129872]
[1749336416113,0.1034348,151.48,151.47,10.64468983]
[1749336416733,0.1034348,151.48,151.47,13.11299657]
[1749336416937,0.1034348,151.48,151.47,13.11317794]
[1749336417315,0.1034348,151.48,151.47,13.11318242]
[1749336417513,0.1034348,151.48,151.47,10.36036669]
[1749336417910,0.1034348,151.48,151.47,12.82885928]
[1749336418123,0.1034348,151.48,151.47,24.46931916]
[1749336419335,0.1034348,151.48,151.47,22.00036669]
[1749336419857,0.1034348,151.48,151.47,24.46954341]
[1749336421237,0.1034348,151.48,151.47,24.47032333]
[1749336421411,0.1034348,151.48,151.47,22.00036669]
[1749336421728,0.1034348,151.48,151.47,24.47031885]
[1749336422534,0.1034348,151.48,151.47,22.00036669]
[1749336423039,0.1034348,151.48,151.47,18.24196738]
[1749336423228,3.86183411,151.48,151.47,11.64]
[1749336426237,0.1034348,151.48,151.47,11.64]
[1749336426439,3.86183411,151.48,151.47,11.64]
[1749336426909,0.1034348,151.48,151.47,18.24196738]
[1749336427725,3.86183411,151.48,151.47,18.24196738]
[1749336428650,0.1034348,151.48,151.47,18.24196738]
[1749336436751,0.1034348,151.48,151.47,22.28468983]
[1749336438050,0.1034348,151.48,151.47,18.52629052]
[1749336440360,0.1034348,151.48,151.47,22.28468983]
[1749336447368,0.1034348,151.48,151.47,18.52629052]
[1749336447859,0.1034348,151.48,151.47,22.28468983]
[1749336448564,0.1034348,151.48,151.47,18.24196738]
[1749336451740,3.86183411,151.48,151.47,11.64]
[1749336452261,0.1034348,151.48,151.47,18.24196738]
[1749336461954,0.1034348,151.48,151.47,11.64]
[1749336462669,3.86183411,151.48,151.47,11.64]
[1749336469167,0.1034348,151.48,151.47,11.64]
[1749336474082,3.86183411,151.48,151.47,11.64]
[1749336476374,0.1034348,151.48,151.47,11.64]
[1749336476567,3.86183411,151.48,151.47,11.64]
[1749336479898,10.46336566,151.48,151.47,11.64]
[1749336480382,29.11301452,151.48,151.47,11.64]
[1749336480582,18.64964886,151.47,151.43,11.54]
[1749336480882,3.75839931,151.44,151.43,11.54]
[1749336482710,10.36167453,151.44,151.43,11.54]
[1749336482882,11.93407453,151.44,151.43,11.54]
[1749336485088,30.58372339,151.44,151.43,11.54]
[1749336487275,34.3421227,151.44,151.43,11.54]
[1749336487468,34.3421227,151.44,151.39,11.56]
[1749336487669,3.75839931,151.4,151.39,11.56]
[1749336488974,10.36341912,151.4,151.39,11.56]
[1749336489969,3.75839931,151.4,151.39,11.56]
[1749336498516,29.01306798,151.4,151.39,11.56]
[1749336498724,18.64964886,151.39,151.35,11.5]
[1749336499018,3.75839931,151.36,151.35,11.5]
[1749336501425,24.52218635,151.36,151.35,11.5]
[1749336508089,18.64964886,151.35,151.31,11.52]
[1749336508292,5.87253749,151.32,151.31,11.52]
[1749336513919,25.25699041,151.35,151.31,11.52]
[1749336514105,5.87253749,151.32,151.31,11.52]
[1749336517022,24.52218635,151.32,151.31,11.52]
[1749336518417,18.64964886,151.32,151.31,11.52]
[1749336518626,24.52218635,151.32,151.31,11.52]
[1749336520204,18.64964886,151.32,151.31,11.52]
[1749336520425,24.52218635,151.32,151.31,11.52]
[1749336521333,22.40987039,151.32,151.31,11.52]
[1749336529722,42.16,151.34,151.31,18.12894851]
[1749336529918,3.76022153,151.33,151.31,18.12894851]
[1749336531118,3.76022153,151.32,151.31,18.12894851]
[1749336534053,1.646,151.38,151.31,34.6513198]
[1749336534214,3.76022153,151.34,151.31,34.6513198]
[1749336537216,3.76022153,151.35,151.31,34.6513198]
[1749336537420,3.76022153,151.37,151.33,3.76022153]
[1749336537729,3.76022153,151.4,151.35,3.76022153]
[1749336537923,3.76022153,151.39,151.35,3.76022153]
[1749336538240,3.76022153,151.38,151.34,5.33742153]
[1749336538542,3.76022153,151.39,151.34,5.33742153]
[1749336538728,3.76022153,151.39,151.35,23.12520647]
[1749336541348,5.86883749,151.39,151.35,23.12520647]
[1749336541852,5.86883749,151.39,151.35,28.99404396]
[1749336543160,5.86883749,151.39,151.35,23.12520647]
[1749336543348,5.86883749,151.39,151.35,28.99404396]
[1749336547864,5.86883749,151.4,151.35,28.99404396]
[1749336553761,5.86883749,151.39,151.35,28.99404396]
[1749336555179,18.64964886,151.41,151.35,28.99404396]
[1749336555355,5.86883749,151.39,151.35,28.99404396]
[1749336561357,5.86883749,151.39,151.36,11.42]
[1749336561868,5.86883749,151.39,151.37,6.60632886]
[1749336563186,3.75589137,151.39,151.37,6.60632886]
[1749336564774,3.75589137,151.4,151.37,6.60632886]
[1749336566082,3.75589137,151.4,151.37,11.42]
[1749336568468,18.64964886,151.41,151.38,6.60589245]
[1749336568797,26.0,151.43,151.38,10.36178382]
[1749336568973,3.75589137,151.42,151.38,10.36178382]
[1749336571086,3.75589137,151.43,151.38,26.87651496]
[1749336571795,3.75589137,151.43,151.39,3.75589137]
[1749336571998,3.75589137,151.44,151.39,3.75589137]
[1749336573067,3.75589137,151.43,151.4,6.60501981]
[1749336573587,3.75589137,151.41,151.37,11.42]
[1749336573774,3.75589137,151.4,151.37,11.42]
[1749336573977,3.75589137,151.41,151.37,11.42]
[1749336574700,3.75589137,151.41,151.38,6.60589245]
[1749336575405,3.75589137,151.4,151.38,6.60589245]
[1749336576587,18.64964886,151.44,151.38,6.60589245]
[1749336576794,18.64964886,151.44,151.38,10.36178382]
[1749336576795,3.75589137,151.42,151.38,10.36178382]
[1749336577300,3.75589137,151.42,151.38,6.60589245]
[1749336581108,18.64964886,151.44,151.38,26.87651496]
[1749336581317,3.75589137,151.42,151.38,26.87651496]
[1749336586709,3.75589137,151.42,151.38,26.87651496]
[1749336587213,3.75589137,151.41,151.38,23.12062359]
[1749336587908,3.75589137,151.4,151.38,6.60589245]
[1749336590112,22.40554023,151.44,151.38,6.60589245]
[1749336590113,3.75589137,151.41,151.38,6.60589245]
[1749336590885,3.75589137,151.41,151.39,11.36]
[1749336591294,3.75589137,151.4,151.39,17.9654561]
[1749336594606,18.64964886,151.44,151.39,34.47909636]
[1749336594808,3.75589137,151.41,151.39,34.47909636]
[1749336597420,3.75589137,151.42,151.39,34.47909636]
[1749336597714,3.75589137,151.45,151.41,3.75589137]
[1749336597915,3.75589137,151.46,151.42,3.75589137]
[1749336598502,0.1034348,151.48,151.42,3.75589137]
[1749336598702,3.75589137,151.47,151.42,3.75589137]
[1749336599316,3.75589137,151.47,151.43,23.11298949]
[1749336600103,3.85932617,151.48,151.43,26.86888086]
[1749336602026,3.75589137,151.47,151.43,23.11298949]
[1749336602426,3.75589137,151.46,151.43,23.11298949]
[1749336603313,3.75589137,151.47,151.43,23.11298949]
[1749336607243,3.75589137,151.47,151.43,26.86888086]
[1749336609025,3.75589137,151.45,151.43,6.60371128]
[1749336609319,3.75589137,151.46,151.43,6.60371128]
[1749336610417,3.75589137,151.46,151.42,23.11448702]
[1749336611435,3.75589137,151.47,151.42,26.87037839]
[1749336613530,3.75589137,151.47,151.42,23.11448702]
[1749336613731,3.75589137,151.47,151.42,26.87037839]
[1749336616915,0.1034348,151.48,151.42,26.87037839]
[1749336617236,3.85932617,151.48,151.43,4.04021451]
[1749336619849,3.85932617,151.48,151.44,6.60327522]
[1749336620065,3.85932617,151.48,151.45,11.3]
[1749336620429,3.75589137,151.47,151.45,11.3]
[1749336621946,3.75589137,151.47,151.46,6.60240327]
[1749336622335,3.85932617,151.48,151.46,6.60240327]
[1749336623937,3.75589137,151.47,151.46,6.60240327]
[1749336624547,0.1034348,151.48,151.46,6.60240327]
[1749336624746,3.85932617,151.48,151.46,6.60240327]
[1749336626258,3.75589137,151.47,151.46,6.60240327]
[1749336627363,0.1034348,151.48,151.46,6.60240327]
[1749336627545,3.75589137,151.47,151.46,6.60240327]
[1749336629364,3.75589137,151.47,151.46,17.90240327]
[1749336641666,3.75589137,151.47,151.46,20.37276019]
[1749336642052,3.75589137,151.47,151.46,17.90240327]
[1749336642267,3.75589137,151.47,151.46,20.37280684]
[1749336642448,3.75589137,151.47,151.46,20.37272709]
[1749336642849,3.75589137,151.47,151.46,20.37272641]
[1749336644167,3.75589137,151.47,151.46,20.37381162]
[1749336644364,3.75589137,151.47,151.46,20.37376658]
[1749336644575,3.75589137,151.47,151.46,20.37366419]
[1749336644758,3.75589137,151.47,151.46,20.37350719]
[1749336645100,3.75589137,151.47,151.46,17.90240327]
[1749336645270,3.75589137,151.47,151.46,20.37350719]
[1749336645581,3.75589137,151.47,151.46,17.90240327]
[1749336645783,3.75589137,151.47,151.46,20.37327922]
[1749336646167,3.75589137,151.47,151.46,20.37311435]
[1749336646680,3.75589137,151.47,151.46,20.37308458]
[1749336646882,3.75589137,151.47,151.46,20.37294823]
[1749336647584,3.75589137,151.47,151.46,20.37329968]
[1749336648383,3.75589137,151.47,151.46,20.37254529]
[1749336648568,3.75589137,151.47,151.46,20.37254267]
[1749336649380,3.75589137,151.47,151.46,20.37201423]
[1749336649567,3.75589137,151.47,151.46,20.37198533]
[1749336649953,3.75589137,151.47,151.46,20.37194577]
[1749336650158,3.75589137,151.47,151.46,20.37205556]
[1749336650475,3.75589137,151.47,151.46,20.37205548]
[1749336650678,3.85932617,151.48,151.46,20.37205548]
[1749336650877,3.85932617,151.48,151.46,17.90240327]
[1749336653400,3.85932617,151.48,151.42,20.26623099]
[1749336653401,3.75589137,151.47,151.42,0.28432314]
[1749336653589,0.1034348,151.48,151.46,11.26]
[1749336654791,3.75589137,151.47,151.46,11.26]
[1749336657894,18.64964886,151.46,151.42,11.26]
[1749336658097,3.75589137,151.43,151.42,11.26]
[1749336658681,3.75589137,151.43,151.42,17.8641474]
[1749336659889,3.75589137,151.43,151.42,11.26]
[1749336661368,27.5566,151.46,151.42,11.26]
[1749336661573,3.75589137,151.43,151.42,11.26]
[1749336661992,3.75589137,151.43,151.42,17.86407092]
[1749336662195,3.75589137,151.44,151.42,17.86407092]
[1749336662695,3.75589137,151.45,151.42,17.86407092]
[1749336665399,44.75308366,151.48,151.42,17.86407092]
[1749336665400,3.75589137,151.46,151.42,17.86407092]
[1749336665804,3.75589137,151.46,151.42,38.1303308]
[1749336666099,3.75589137,151.47,151.43,0.28432314]
[1749336666300,3.75589137,151.47,151.43,4.04021451]
[1749336668309,3.75589137,151.47,151.44,6.60327522]
[1749336670613,3.75589137,151.46,151.44,6.60327522]
[1749336672491,3.75589137,151.46,151.45,11.26]
[1749336681905,29.0079435,151.46,151.45,11.26]
[1749336685628,34.39423487,151.46,151.41,11.22]
[1749336685919,3.75589137,151.42,151.41,11.22]
[1749336691196,22.40554023,151.42,151.41,11.22]
[1749336693028,29.00968763,151.42,151.41,11.22]
[1749336694314,22.40554023,151.42,151.41,11.22]
[1749336699729,29.00968763,151.42,151.41,11.22]
[1749336700529,25.25379626,151.42,151.41,11.22]
[1749336700716,22.40554023,151.42,151.41,11.22]
[1749336702926,89.3270146,151.44,151.41,11.22]
[1749336702927,67.7,151.44,151.41,11.22]
[1749336703101,3.75589137,151.42,151.41,11.22]
[1749336711032,18.64964886,151.43,151.41,11.22]
[1749336711339,3.75589137,151.42,151.41,17.82458358]
[1749336711924,3.75589137,151.42,151.41,11.22]
[1749336712937,3.75589137,151.42,151.41,17.82458358]
[1749336713442,3.75589137,151.43,151.41,17.82458358]
[1749336713813,18.64964886,151.46,151.41,17.82458358]
[1749336714113,3.75589137,151.44,151.41,17.82458358]
[1749336719446,3.75589137,151.43,151.41,17.82458358]
[1749336720449,3.75589137,151.44,151.41,17.82458358]
[1749336725030,3.75589137,151.45,151.41,38.0919339]
[1749336725349,18.64964886,151.47,151.41,38.0919339]
[1749336725527,3.75589137,151.47,151.42,3.75589137]
[1749336725727,3.75589137,151.47,151.43,3.75589137]
[1749336726425,3.75589137,151.47,151.44,6.60327522]
[1749336728251,3.85932617,151.48,151.44,6.60327522]
[1749336728431,3.85932617,151.48,151.44,26.86735465]
[1749336729951,3.85932617,151.48,151.44,23.11146328]
[1749336730450,3.75589137,151.47,151.44,23.11146328]
[1749336734343,0.1034348,151.48,151.44,23.11146328]
[1749336734550,3.85932617,151.48,151.44,23.11146328]
[1749336734866,0.1034348,151.48,151.44,26.86735465]
[1749336735055,3.85932617,151.48,151.44,26.86735465]
[1749336736765,3.85932617,151.48,151.44,16.50818806]
[1749336738163,3.85932617,151.48,151.44,26.86735465]
[1749336738360,0.1034348,151.48,151.45,0.28432314]
[1749336738566,0.1034348,151.48,151.46,11.18]
[1749336739567,0.1034348,151.48,151.47,6.60196738]
[1749336741151,3.85932617,151.48,151.46,6.60240327]
[1749336741355,3.75589137,151.47,151.46,6.60240327]
[1749336741664,3.75589137,151.47,151.46,17.74240327]
[1749336747155,0.1034348,151.48,151.46,17.74240327]
[1749336753172,5.96461833,151.48,151.46,17.74240327]
[1749336755661,5.96461833,151.48,151.46,11.14]
[1749336755859,5.86118353,151.47,151.46,11.14]
[1749336760163,31.11279977,151.47,151.46,11.14]
[1749336761373,32.75709977,151.47,151.46,11.14]
[1749336762376,18.64964886,151.46,151.42,11.14]
[1749336762576,5.86118353,151.43,151.42,11.14]
[1749336771393,3.75412778,151.43,151.42,11.14]
[1749336773194,3.75412778,151.44,151.42,11.14]
[1749336774693,3.75412778,151.44,151.42,17.74401054]
[1749336782179,25.35478267,151.48,151.42,17.74401054]
[1749336782395,3.75412778,151.44,151.42,17.74401054]
[1749336788797,18.75308366,151.48,151.42,17.74401054]
[1749336789011,0.1034348,151.48,151.42,17.74401054]
[1749336789194,3.75412778,151.47,151.43,0.28432314]
[1749336789373,3.75412778,151.46,151.43,0.28432314]
[1749336790091,3.75412778,151.46,151.42,34.25437905]
[1749336790600,3.75412778,151.45,151.42,34.25437905]
[1749336792397,3.75412778,151.45,151.42,17.74401054]
[1749336793890,3.75412778,151.46,151.42,17.74401054]
[1749336797795,18.75308366,151.48,151.42,17.74401054]
[1749336797796,3.75412778,151.45,151.42,17.74401054]
[1749336799106,3.75412778,151.43,151.42,11.14]
[1749336810606,3.75412778,151.43,151.42,17.7441474]
[1749336813301,3.75412778,151.43,151.42,11.14]
[1749336814907,18.64964886,151.45,151.42,11.14]
[1749336815111,3.75412778,151.43,151.42,11.14]
[1749336815505,18.64964886,151.45,151.42,11.14]
[1749336815812,3.75412778,151.43,151.42,11.14]
[1749336816417,3.75412778,151.43,151.42,17.7441474]
[1749336819122,3.75412778,151.45,151.42,17.7441474]
[1749336828012,3.75412778,151.46,151.42,17.7441474]
[1749336835629,3.75412778,151.44,151.42,17.7441474]
[1749336837525,3.75412778,151.45,151.42,17.7441474]
[1749336839015,3.75412778,151.45,151.42,6.6041474]
[1749336839340,3.75412778,151.45,151.43,11.02]
[1749336841847,3.75412778,151.45,151.43,17.62368429]
[1749336843845,3.75412778,151.45,151.41,6.60458358]
[1749336844019,3.75412778,151.45,151.44,11.02]
[1749336845048,3.25412778,151.45,151.44,11.02]
[1749336851641,3.25412778,151.45,151.44,17.62327522]
[1749336851845,3.75412778,151.45,151.44,17.62327522]
[1749336857852,18.75308366,151.48,151.44,17.62327522]
[1749336858061,3.75412778,151.45,151.44,17.62327522]
[1749336858269,0.1034348,151.48,151.44,37.88559106]
[1749336859666,0.1034348,151.48,151.46,6.60240327]
[1749336861564,0.1034348,151.48,151.45,23.10993727]
[1749336866560,0.1034348,151.48,151.45,26.86406505]
[1749336867751,0.1034348,151.48,151.47,3.75412778]
[1749336867951,0.1034348,151.48,151.47,4.03845092]
[1749336869667,0.1034348,151.48,151.47,10.6404183]
[1749336871552,0.1034348,151.48,151.47,6.60196738]
[1749336873463,0.1034348,151.48,151.47,10.35609516]
[1749336874178,0.1034348,151.48,151.47,6.60196738]
[1749336877554,0.1034348,151.48,151.47,6.88629052]
[1749336877754,0.1034348,151.48,151.47,10.6404183]
[1749336880855,0.1034348,151.48,151.47,6.60196738]
[1749336882426,0.1034348,151.48,151.46,10.64085419]
[1749336885014,0.1034348,151.48,151.47,17.58196738]
[1749336889527,3.85756258,151.48,151.47,10.98]
[1749336892100,22.50721144,151.48,151.47,10.98]
[1749336892421,29.10874299,151.48,151.47,10.98]
[1749336895221,31.21991172,151.48,151.47,10.98]
[1749336896134,37.77551172,151.48,151.47,10.98]
[1749336901709,37.77551172,151.48,151.41,6.60443214]
[1749336901910,18.64964886,151.47,151.43,10.94]
[1749336903013,5.86529651,151.44,151.43,10.94]
[1749336904623,36.9835171,151.44,151.43,10.94]
[1749336911145,31.11822059,151.44,151.43,10.94]
[1749336911518,24.51494537,151.44,151.43,10.94]
[1749336911729,18.64964886,151.44,151.43,10.94]
[1749336911932,24.51494537,151.44,151.43,10.94]
[1749336913934,31.11822059,151.44,151.43,10.94]
[1749336915236,29.00779445,151.44,151.43,10.94]
[1749336925859,22.40451923,151.44,151.43,10.94]
[1749336926032,3.75487037,151.44,151.43,10.94]
[1749336926567,3.75487037,151.45,151.43,10.94]
[1749336927051,3.75487037,151.44,151.43,10.94]
[1749336929159,18.64964886,151.47,151.43,17.54369626]
[1749336929370,3.75487037,151.45,151.43,17.54369626]
[1749336929654,3.75487037,151.44,151.43,10.94]
[1749336942271,3.75487037,151.44,151.43,17.54371128]
[1749336942862,3.75487037,151.45,151.43,17.54371128]
[1749336943669,3.75487037,151.44,151.43,17.54371128]
[1749336954679,3.75487037,151.44,151.43,10.94]
[1749336955972,3.75487037,151.44,151.43,17.54371128]
[1749336960684,3.75487037,151.45,151.43,17.54371128]
[1749336965563,3.75487037,151.44,151.43,10.94]
[1749336977069,29.00779445,151.44,151.43,10.94]
[1749336977706,32.76266482,151.44,151.43,10.94]
[1749336978805,73.86266482,151.44,151.43,10.94]
[1749336979293,73.86266482,151.44,151.39,10.88]
[1749336979294,18.64964886,151.43,151.39,10.88]
[1749336979503,3.75487037,151.4,151.39,10.88]
[1749336984875,22.40451923,151.4,151.39,10.88]
[1749336986800,29.00953904,151.4,151.39,10.88]
[1749336987583,22.40451923,151.4,151.39,10.88]
[1749336988182,22.40451923,151.4,151.35,44.66704771]
[1749336988183,18.64964886,151.39,151.35,48.9]
[1749336988391,3.75487037,151.36,151.35,48.9]
[1749336992786,3.75487037,151.36,151.35,10.84]
[1749336996293,22.40451923,151.36,151.35,10.84]
[1749336997712,29.01128455,151.36,151.35,10.84]
[1749336997894,70.03076603,151.36,151.35,10.84]
[1749336998102,18.64964886,151.35,151.31,10.86]
[1749336998316,3.75487037,151.32,151.31,10.86]
[1749337008906,22.40451923,151.32,151.31,10.86]
[1749337015318,18.64964886,151.32,151.31,10.86]
[1749337015541,22.40451923,151.32,151.31,10.86]
[1749337016252,18.64964886,151.32,151.31,10.86]
[1749337016433,3.75487037,151.32,151.31,10.86]
[1749337021649,29.01303099,151.32,151.31,10.86]
[1749337022424,70.07303099,151.32,151.31,10.86]
[1749337024348,70.07303099,151.32,151.27,10.82]
[1749337024555,3.75487037,151.28,151.27,10.82]
[1749337025148,3.75487037,151.28,151.25,6.61127487]
[1749337025339,3.75487037,151.28,151.22,48.9]
[1749337025340,3.75487037,151.26,151.22,48.9]
[1749337025537,3.75487037,151.23,151.22,48.9]
[1749337025742,18.64964886,151.26,151.22,10.82]
[1749337025962,18.64964886,151.26,151.22,17.43283034]
[1749337026251,18.64964886,151.26,151.22,10.82]
[1749337026252,3.75487037,151.24,151.22,10.82]
[1749337027632,3.75487037,151.24,151.22,17.432867]
[1749337028657,3.75487037,151.25,151.22,17.432867]
[1749337028827,3.75487037,151.27,151.22,21.18773737]
[1749337029027,18.64964886,151.29,151.22,21.18773737]
[1749337029028,3.75487037,151.26,151.22,17.432867]
[1749337029235,3.75487037,151.26,151.22,21.18773737]
[1749337031233,5.87883185,151.26,151.22,23.31169885]
[1749337031437,18.64964886,151.29,151.23,5.87883185]
[1749337031638,5.87883185,151.28,151.24,5.87883185]
[1749337032250,5.87883185,151.29,151.24,5.87883185]
[1749337033247,5.87883185,151.29,151.25,6.61157024]
[1749337035350,31.87883185,151.3,151.25,12.49040209]
[1749337035660,5.87883185,151.29,151.25,12.49040209]
[1749337036359,26.0,151.3,151.25,12.49040209]
[1749337036660,5.87883185,151.31,151.27,5.87883185]
[1749337036838,1.6079,151.33,151.28,10.82]
[1749337036839,24.52848071,151.32,151.28,10.82]
[1749337037046,1.6079,151.33,151.28,10.82]